{"text_format":"3","workbook":"xlsx","n_sheets":2,"sheets":["BOQ ","Summary Page"],"not_rendered":{"defined_names":2},"read":"whole","date_system":"1900"}

{"sheet":"BOQ ","index":0,"n_rows":834,"n_cols":17,"rows_kept":834}
[null,null,"MHLATHUZE WATER",{"$nulls":4},"CONTRACT NUMBER: MW/73/3/2022/2023/02"]
[null,null,"MTUBATUBA LOCAL MUNICIPALITY: WARD 10 WATER SUPPLY REFURBISHMENT"]
[]
[]
[null,null,"ITEM","PAYMENT","DESCRIPTION","UNIT","QTY","RATE","   AMOUNT"]
[null,null,"NO",{"$nulls":5},"R"]
[]
[null,null,"A","SABS 1200 AA\n","SECTION A: PRELIMINARY AND GENERAL \n"]
[]
[null,null,"A1","8.3","FIXED-CHARGED ITEMS"]
[]
[null,null,"A1.1","8.3.1","Contractual requirements","Sum",1,null,{"$f":"IF(G12=\"\", \"\", G12*H12)","v":{"v":0,"d":"R 0.00"}}]
[{"$nulls":8},""]
[{"$nulls":3},"8.3.2","Establish Facilities on Site",{"$nulls":3},""]
[{"$nulls":8},""]
[null,null,"A2","8.3.2.1","Facilities for the Engineer:",{"$nulls":3},""]
[{"$nulls":8},""]
[null,null,"A2.1",null,"a) Nameboards (2No) (Refer to Drawing)","Sum",1,null,{"v":0,"d":"R 0.00"}]
[{"$nulls":8},""]
[null,null,"A2.2",null,"b) Use of survey Instruments","Sum",1,null,{"v":0,"d":"R 0.00"}]
[{"$nulls":8},""]
[null,null,"A3","8.3.2.2","Facilities for Contractor: ",{"$nulls":3},""]
[{"$nulls":8},""]
[null,null,"A3.1",null,"a) Offices, storage sheds, workshops, living accommodation, ablution and latrine facilities, tools and equipment, water supplies, electric power, communications, access and plant","Sum",1,null,{"v":0,"d":"R 0.00"}]
[{"$nulls":8},""]
[null,null,"A3.2",null,"b) Dealing with water generally on site and at river crossings","Sum",1,null,{"v":0,"d":"R 0.00"}]
[{"$nulls":8},""]
[null,null,"A3.3",null,"c) Access","Sum",1,null,{"v":0,"d":"R 0.00"}]
[{"$nulls":8},""]
[null,null,"A4","8.3.3","Other fixed charge obligations","Sum",1,null,{"v":0,"d":"R 0.00"}]
[{"$nulls":8},""]
[null,null,"A5","8.3.4","Remove Engineer's and Contractor's site establishment on completion","Sum",1,null,{"v":0,"d":"R 0.00"}]
[{"$nulls":8},""]
[null,null,"A6",null,"Accommodation of traffic and road crossings","Sum",1,null,{"$f":"IF(G34=\"\", \"\", G34*H34)","v":{"v":0,"d":"R 0.00"}}]
[{"$nulls":8},""]
[null,null,"A7",null,"As built drawings and operating and maintenance manuals","Sum",1,null,{"v":0,"d":"R 0.00"}]
[{"$nulls":8},""]
[null,null,"A8",null,"Provision of access to properties during construction","Sum",1,null,{"v":0,"d":"R 0.00"}]
[{"$nulls":8},""]
[null,null,"A9",null,"Preparation of risk assessments, safe work procedures, the project H&S File, the H&S plan, the provision of PPE and protective clothing, and other H&S matters that the contractor deems necessary","Sum",1,null,{"v":0,"d":"R 0.00"}]
[{"$nulls":8},""]
[null,null,"A10",null,"Completing and checking the Project H&S File and handing over to the Client on completion of the works","Sum",1,null,{"v":0,"d":"R 0.00"}]
[{"$nulls":8},""]
[null,null,"A11","SANS 1921-6","Compliance with SANS 1921 Part 6 HIV/Aids Awareness","Sum",1,null,{"v":0,"d":"R 0.00"}]
[]
[null,null,"A12",null,"Contractors responsibility in terms of the Environmental Management Plan","Sum",1,null,{"$f":"IF(G46=\"\", \"\", G46*H46)","v":{"v":0,"d":"R 0.00"}}]
[{"$nulls":3},"8.4","Time Related Items",{"$nulls":3},""]
[{"$nulls":8},""]
[null,null,"A13","8.4.1","Contractual requirements","Sum",1,null,{"v":0,"d":"R 0.00"}]
[{"$nulls":8},""]
[null,null,"A14","8.4.2","Operate and maintain facilities on the site for the duration of construction:",{"$nulls":3},""]
[{"$nulls":8},""]
[null,null,"A14.1","8.4.2.1","Facilities for the Engineer-",{"$nulls":3},""]
[{"$nulls":8},""]
[null,null,"A14.1.1",null,"a) Nameboards (2No) (Refer to Drawing)","Sum",1,null,{"v":0,"d":"R 0.00"}]
[{"$nulls":8},""]
[null,null,"A14.1.2",null,"b) Survey assistants and materials","Sum",1,null,{"v":0,"d":"R 0.00"}]
[{"$nulls":8},""]
[null,null,"A14.1.3",null,"Other time related obligations","Sum",1,null,{"v":0,"d":"R 0.00"}]
[{"$nulls":8},""]
[null,null,"A14.2","8.4.2.2","Facilities for the Contractor-",{"$nulls":3},""]
[{"$nulls":8},""]
[null,null,"A14.2.1",null,"a) Offices, storage sheds, workshops, living accommodation, ablution and latrine facilities, tools and equipment, water supplies, electric power, communications, access and plant","Sum",1,null,{"v":0,"d":"R 0.00"}]
[{"$nulls":8},""]
[null,null,"A14.2.6",null,"b) Dealing with water generally on site and at river crossings","Sum",1,null,{"v":0,"d":"R 0.00"}]
[{"$nulls":8},""]
[null,null,"A14.2.7",null,"c) Access","Sum",1,null,{"v":0,"d":"R 0.00"}]
[{"$nulls":8},""]
[null,null,"A15","8.4.3","Supervision for duration of construction","Sum",1,null,{"v":0,"d":"R 0.00"}]
[]
[null,null,"A16","8.4.4","Company and head office overhead costs for the duration of the contract","Sum",1,null,{"$f":"IF(G71=\"\", \"\", G71*H71)","v":{"v":0,"d":"R 0.00"}}]
[]
[null,null,"A17",null,"Updating and amending the risk assessments, safe work procedures, the project H&S File, the H&S plan, the provision of PPE and protective clothing and any other H&S matters that the contractor deems necessary","Sum",1,null,{"$f":"IF(G73=\"\", \"\", G73*H73)","v":{"v":0,"d":"R 0.00"}}]
[]
[]
[null,null," TOTAL CARRIED FORWARD",{"$nulls":5},{"$f":"SUM(I8:I74)","v":{"v":0,"d":"R 0.00"}}]
[]
[]
[null,null," BROUGHT FORWARD",{"$nulls":5},{"$f":"I76","v":{"v":0,"d":"R 0.00"}}]
[]
[null,null,"A18",null,"Full compliance with all Environmental management Plan during the construction of the works under the contract","Sum",1,null,{"$f":"IF(G81=\"\", \"\", G81*H81)","v":{"v":0,"d":"R 0.00"}}]
[{"$nulls":8},""]
[null,null,"A19","8.4.5","Other time related obligations","Sum",1,null,{"v":0,"d":"R 0.00"}]
[{"$nulls":8},""]
[{"$nulls":3},8.5,"Provisional Sums",{"$nulls":3},""]
[]
[null,null,"A20",null,"Empowerment of local personel through skills development and skills transfer by an accredited trainer/service provider to be appointed or nominated by client.","Prov Sum",1,{"v":100000,"d":"R 100,000.00"}]
[]
[null,null,"A21",null,{"$f":"\"Extra over item \"&C87 &\" for contractors overheads, charges and profit\"","v":"Extra over item A20 for contractors overheads, charges and profit"},"%",{"$f":"H87","v":100000},{"v":0.1,"d":"10%"}]
[]
[null,null,"A22",null,"Provisional sum for conforming with the requirements of EPWP","Prov Sum",1,{"v":50000,"d":"R 50,000.00"}]
[]
[null,null,"A23",null,{"$f":"\"Extra over item \"&C91 &\" for contractors overheads, charges and profit\"","v":"Extra over item A22 for contractors overheads, charges and profit"},"%",{"$f":"H91","v":50000},{"v":0.1,"d":"10%"}]
[]
[null,null,"A24",null,"Additional tests ordered by the Engineer","Prov Sum",1,{"v":20000,"d":"R 20,000.00"}]
[]
[null,null,"A25",null,{"$f":"\"Extra over item \"&C95 &\" for contractors overheads, charges and profit\"","v":"Extra over item A24 for contractors overheads, charges and profit"},"%",{"$f":"H95","v":20000},{"v":0.1,"d":"10%"}]
[]
[null,null,"A26",null,"Identify local emerging sub contractors,  select, invite quotations and award sub contracts to local SMMEs "," Prov Sum",1,{"v":30000,"d":"R 30,000.00"}]
[]
[null,null,"A27",null,{"$f":"\"Extra over item \"&C99 &\" for contractors overheads, charges and profit\"","v":"Extra over item A26 for contractors overheads, charges and profit"},"%",{"$f":"H99","v":30000},{"v":0.1,"d":"10%"}]
[]
[null,null,"A28",null,"Provision of accredited on site skills training. Including supervision, salaries and other validated costs"," Prov Sum",1,{"v":30000,"d":"R 30,000.00"}]
[]
[null,null,"A29",null,{"$f":"\"Extra over item for contractor's Mark up on Items \"&\"\"&C103","v":"Extra over item for contractor's Mark up on Items A28"},"%",{"$f":"H103","v":30000},{"v":0.1,"d":"10%"}]
[]
[null,null,"A30",null,"Allow provisional sum for survey by surveyor appointed by the Engineer"," Prov Sum",1,{"v":20000,"d":"R 20,000.00"}]
[]
[null,null,"A31",null,{"$f":"\"Extra over item \"&C107 &\" for contractors overheads, charges and profit\"","v":"Extra over item A30 for contractors overheads, charges and profit"},"%",{"$f":"H107","v":20000},{"v":0.1,"d":"10%"}]
[]
[null,null,"A32",null,"Environmental rehabilitation at specific locations by a selected sub contractor"," Prov Sum",1,{"v":25000,"d":"R 25,000.00"}]
[]
[null,null,"A33",null,{"$f":"\"Extra over item \"&C111 &\" for contractors overheads, charges and profit\"","v":"Extra over item A32 for contractors overheads, charges and profit"},"%",{"$f":"H111","v":25000},{"v":0.1,"d":"10%"}]
[]
[null,null,"A34","8.5. b) 1)","Acceptance criteria testing as directed by the engineeer"," Prov Sum",1,{"v":20000,"d":"R 20,000.00"}]
[]
[null,null,"A35","8.5. b) 2)",{"$f":"\"Extra over item \"&C115 &\" for contractors overheads, charges and profit\"","v":"Extra over item A34 for contractors overheads, charges and profit"},"%",{"$f":"H115","v":20000},{"v":0.1,"d":"10%"}]
[]
[null,null,"A36",null,"Attendance by representitive of jointing (sealing) compound supplier"," Prov Sum",1,{"v":20000,"d":"R 20,000.00"}]
[]
[null,null,"A37",null,{"$f":"\"Extra over item \"&C119 &\" for contractors overheads, charges and profit\"","v":"Extra over item A36 for contractors overheads, charges and profit"},"%",{"$f":"H119","v":20000},{"v":0.1,"d":"10%"}]
[]
[null,null,"A38",null,"Allowance for refurbishment or retrofitting from testing recommendations"," Prov Sum",1,{"v":20000,"d":"R 20,000.00"}]
[]
[null,null,"A39",null,{"$f":"\"Extra over item \"&C123 &\" for contractors overheads, charges and profit\"","v":"Extra over item A38 for contractors overheads, charges and profit"},"%",{"$f":"H123","v":20000},{"v":0.1,"d":"10%"}]
[]
[null,null,"A40",null,"Allowance for removal and disposal of existing works complete and make good as directed by engineer"," Prov Sum",1,{"v":20000,"d":"R 20,000.00"}]
[]
[null,null,"A41",null,{"$f":"\"Extra over item \"&C127 &\" for contractors overheads, charges and profit\"","v":"Extra over item A40 for contractors overheads, charges and profit"},"%",{"$f":"H127","v":20000},{"v":0.1,"d":"10%"}]
[]
[null,null,"A42",null,"Allowance for water testing of pipelines complete and make good as directed by engineer (2 fillings)"," Prov Sum",1,{"v":20000,"d":"R 20,000.00"}]
[]
[null,null,"A43",null,{"$f":"\"Extra over item \"&C131 &\" for contractors overheads, charges and profit\"","v":"Extra over item A42 for contractors overheads, charges and profit"},"%",{"$f":"H131","v":20000},{"v":0.1,"d":"10%"}]
[{"$nulls":16},{"$f":"200*2*23","v":9200}]
[null,null,"A44",null,"Allowance for Community Liason Officer (CLO)"," Prov Sum",1,{"$f":"5000*12","v":{"v":60000,"d":"R 60,000.00"}}]
[]
[null,null,"A45",null,{"$f":"\"Extra over item \"&C135 &\" for contractors overheads, charges and profit\"","v":"Extra over item A44 for contractors overheads, charges and profit"},"%",{"$f":"H135","v":60000},{"v":0.1,"d":"10%"}]
[]
[null,null,"A46",null,"Allowance for compensating landowners for crop damage due to construction"," Prov Sum",1,{"v":20000,"d":"R 20,000.00"}]
[]
[null,null,"A47",null,{"$f":"\"Extra over item \"&C139 &\" for contractors overheads, charges and profit\"","v":"Extra over item A46 for contractors overheads, charges and profit"},"%",{"$f":"H139","v":20000},{"v":0.1,"d":"10%"}]
[]
[null,null,"A48",null,"Establishment of boreholes and equiping complete incuding water testing and linking into the existing water network"," Prov Sum",1,{"v":1200000,"d":"R 1,200,000.00"}]
[]
[null,null,"A49",null,{"$f":"\"Extra over item \"&C143 &\" for contractors overheads, charges and profit\"","v":"Extra over item A48 for contractors overheads, charges and profit"},"%",{"$f":"H143","v":1200000},{"v":0.1,"d":"10%"}]
[]
[null,null,"A50",null,"Establishment of existing water infrastructure, deficiencies, remedial works, fixing, testing, commisssioning and making good"," Prov Sum",1,{"v":1500000,"d":"R 1,500,000.00"}]
[]
[null,null," TOTAL CARRIED FORWARD",{"$nulls":5},{"$f":"SUM(I79:I147)","v":{"v":0,"d":"R 0.00"}}]
[]
[]
[null,null," BROUGHT FORWARD",{"$nulls":5},{"$f":"I149","v":{"v":0,"d":"R 0.00"}}]
[]
[]
[{"$nulls":4},"DAYWORK"]
[]
[null,null,"A51",null,"Plant","Hrs",50,null,{"$f":"IF(G157=\"\", \"\", G157*H157)","v":{"v":0,"d":"R 0.00"}}]
[{"$nulls":8},{"$f":"IF(G158=\"\", \"\", G158*H158)","v":""}]
[null,null,"A52",null,"Labour","Hrs",50,null,{"v":0,"d":"R 0.00"}]
[{"$nulls":8},""]
[{"$nulls":8},{"$f":"IF(G161=\"\", \"\", G161*H161)","v":""}]
[{"$nulls":3},"SANS 1200 A","TEMPORARY WORKS",{"$nulls":3},""]
[{"$nulls":8},""]
[null,null,"A53","8.8.4 c","Excavate by hand to expose undergound services (Proving)","m³",100,null,{"v":0,"d":"R 0.00"}]
[{"$nulls":8},""]
[null,null,"A54","8.8.3","Temporary protection of services","Sum",1,null,{"v":0,"d":"R 0.00"}]
{"$rows_empty":60}
[{"$nulls":8},{"$f":"IF(G227=\"\", \"\", G227*H227)","v":""}]
[]
[]
[]
[]
[]
[null,null," TOTAL CARRIED FORWARD TO SUMMARY",{"$nulls":5},{"$f":"I152+SUM(I156:I230)","v":{"v":0,"d":"R 0.00"}}]
[]
[]
[null,null,"B",null,"SECTION B:  EARTHWORKS"]
[]
[{"$nulls":3},"SABS 1200DA","EARTHWORKS",{"$nulls":3},{"$f":"IF(G238=\"\", \"\", G238*H238)","v":""}]
[{"$nulls":8},""]
[null,null,"B1","8.3.1","Minor Structures and Chambers",{"$nulls":3},""]
[{"$nulls":8},""]
[null,null,"B1.1","8.3.1 b)","Excavate in all materials and use for backfilling or dispose as ordered for minor structures and chambers","m3",{"v":5,"d":"5.0"},null,{"v":0,"d":"R 0.00"}]
[{"$nulls":8},""]
[null,null,"B1.2","8.3.1 c) ",{"$f":"\"Extra Over item  \" &  C242 &\" for:\"","v":"Extra Over item  B1.1 for:"},{"$nulls":3},""]
[{"$nulls":8},""]
[null,null,"B1.2.1","8.3.1 (c) ","1) Intermediate excavation","m3",{"v":2,"d":"2.0"},null,{"v":0,"d":"R 0.00"}]
[{"$nulls":8},""]
[null,null,"B1.2.2","8.3.1 (c) ","2) Hard rock excavation","m3",{"v":2,"d":"2.0"},null,{"v":0,"d":"R 0.00"}]
[]
[null,null,"B1.3","8.3.7","Grassing with sods, watering and maintaining for the duration of the contract in designated areas","m²",{"v":50,"d":"50.0"},null,{"$f":"IF(G250=\"\", \"\", G250*H250)","v":{"v":0,"d":"R 0.00"}}]
[]
[null,null,"B2","SABS 1200DB","Site Clearance"]
[]
[null,null,"B2.1","8.3.1(a)","Clear vegetation and trees of girth up to 1 m and remove, stockpile and reinstate topsoil (100mm deep) along route of pipeline","m",{"v":10000,"d":"10000.0"}]
[]
[null,null,"B2.2","8.3.1(b)","Clear Trees"]
[]
[null,null,"B2.2.1",null,"Girth greater than 1 m up to and including 2 m","No",{"v":2,"d":"2.0"}]
[]
[null,null,"B2.2.2",null,"Girth greater than 2 m up to and including 3 m","No",{"v":1,"d":"1.0"}]
[]
[null,null,"B2.2.3",null,"Excavation of trial holes 1,0 m x 1,0 m x 0,8 m deep as ordered","No",{"v":40,"d":"40.0"}]
[]
[null,null,"B2.2.4"," ","Remove and reinstate fences parallel to pipeline (fences comprising up to 3 strands wire/barbed wire or disjointed timber slats to be included in the normal rate for excavation)","m",{"v":200,"d":"200.0"}]
[]
[null,null,"B3","SABS 1200DB  ","Excavation"]
[]
[{"$nulls":4},"Excavation for uPVC/HDPE pipeline sections by mechanical means "]
[]
[null,null,"B3.1","8.3.2","Selective excavation in all materials for trenches, backfill, compact or dispose of surplus/unsuitable material, for pipes up to and including 90mm dia for depths:"]
[]
[{"$nulls":4},"Over       and     up to "]
[]
[null,null,"B3.1.1",null,"0,0 m               1,0 m","m",{"v":2100,"d":"2100.0"}]
[]
[null,null,"B3.1.2",null,"1,0 m               1,5 m","m",{"v":900,"d":"900.0"}]
[]
[null,null,"B3.2","8.3.2","Excavate in all materials beyond the limits of pipe trenches for thrust walls, valve chambers, anchor blocks where ordered by the Engineer:"]
[]
[{"$nulls":4},"Over       and     up to "]
[]
[null,null,"B3.2.1",null,"0,0 m                1,0 m","m³",{"v":5,"d":"5.0"}]
[]
[null,null,"B3.2.2",null,"1,0 m                1,5 m","m³",{"v":15,"d":"15.0"}]
[]
[null,null,"B3.3","8.3.2","Excavate by hand in confined areas for pipe trenches or to locate and expose existing services where ordered by the Engineer","m³",{"v":10,"d":"10.0"}]
[]
[null,null,"B3.4","8.3.2 (b)","EO Items B.3.1 to B.3.3 for :"]
[]
[null,null,"B3.4.1",null,"Hard rock excavation","m³",{"v":250,"d":"250.0"}]
[]
[null,null,"B3.5",null,"Removal of rock without the use of explosives (where ordered by the Engineer)","m³",{"v":10,"d":"10.0"}]
[]
[{"$nulls":4},"Excavation for uPVC/HDPE pipelines by hand"]
[]
[null,null,"B3.6","8.3.2","Excavation in all materials for pipe trenches, backfill, compact or dispose of surplus/unsuitable material for pipes up to and including 90mm dia for depths: "]
[]
[{"$nulls":4},"Over and Up to "]
[]
[null,null,"B3.6.1",null,"0,0 m 1,0 m","m",{"v":5300,"d":"5300.0"}]
[]
[null,null,"B3.6.2",null,"1,0 m 1,5 m","m",{"v":2500,"d":"2500.0"}]
[]
[null,null," TOTAL CARRIED FORWARD",{"$nulls":5},{"$f":"SUM(I235:I302)","v":{"v":0,"d":"R 0.00"}}]
[]
[]
[null,null," BROUGHT FORWARD",{"$nulls":5},{"$f":"I304","v":{"v":0,"d":"R 0.00"}}]
[]
[]
[null,null,"B4",null,"Excavation Ancilliaries"]
[]
[null,null,"B4.1","8.2.2 (c)","Excavate unsuitable material from trench bottom and dispose","m³",{"v":20,"d":"20.0"}]
[]
[null,null,"B5",null,"Stone Bedding"]
[]
[null,null,"B5.1",null,"Supply and place stone bedding","m³",{"v":20,"d":"20.0"}]
[]
[null,null,"B5.2",null,"Supply and lay geotextile fabric (as Kaymat U14)","m²",{"v":200,"d":"200.0"}]
[]
[null,null,"B6","SABS 1200DB","Imported Backfill Material"]
[]
[null,null,"B6.1","8.3.3.1","Imported backfill material from commercial sources","m³",{"v":20,"d":"20.0"}]
[]
[null,null,"B6.2",null,"Imported backfill material from designated borrow pit","m³",{"v":25,"d":"25.0"}]
[]
[null,null,"B7","8.3.3.3","Compaction under roadways","m³",{"v":15,"d":"15.0"}]
[]
[null,null,"B8","5.1.2.4","Supply and install sack breakers in trenches","No",{"v":20,"d":"20.0"}]
[]
[null,null,"B9",null,"Build cross embankments as specified where ordered","m³",{"v":20,"d":"20.0"}]
[]
[null,null,"B10","SABS 1200DK","Gabions and Pitching"]
[]
[null,null,"B10.1","8.2.1 (a)","Surface preparation - cavities filled with excavated material","m²",{"v":12,"d":"12.0"}]
[]
[null,null,"B10.2","8.2.2","Gabions:"]
[]
[null,null,"B10.2.1",null,"2 m x 1 m x 1 m boxes","m³",{"v":6,"d":"6.0"}]
[]
[null,null,"B10.2.2",null,"2 m x 2 m x 0,23 m boxes","m³",{"v":8,"d":"8.0"}]
[]
[null,null,"B11","8.2.4","Geotexile where ordered","m²",{"v":20,"d":"20.0"}]
[]
[null,null,"B12","8.2.5","Ordinary stone pitching ","m²",{"v":12,"d":"12.0"}]
[]
[null,null,"B13","8.2.5 (a)","Services that Intersect a Trench:"]
[]
[null,null,"B13.1",null,"Stormwater pipes up to 450 mm dia","Nº",{"v":5,"d":"5.0"}]
[]
[null,null,"B13.2",null,"Telkom and electric cables (underground) (no additional payment will be made for overhead telephone lines or poles)","Nº",{"v":5,"d":"5.0"}]
[]
[null,null,"B14","8.3.5 (b)","Services that adjoin a trench:"]
[]
[null,null,"B14.1",null,"Stormwater pipes up to 450 mm dia","m",{"v":50,"d":"50.0"}]
[]
[null,null,"B14.2",null,"Stormwater pipes up to 450 mm dia","m",{"v":50,"d":"50.0"}]
[]
[null,null,"B14.3",null,"Telkom cables (underground) (no additional payment will be made for overhead telephone lines or poles)","m",{"v":100,"d":"100.0"}]
[]
[null,null,"B15","8.3.5","EO Items B.3.3 for excavating, backfilling, compacting and reinstating trenches parallel to and within 1,0 m from: (rates to incl. for reinstating if damaged in any way by the Contractor): "]
[]
[null,null,"B15.1",null,"Wire fences","m",{"v":75,"d":"75.0"}]
[]
[null,null,"B16",null,"EO Items B.3.3 for excavating, backfilling, compacting and reinstating trenches crossing beneath (rates to incl. for reinstating if damaged in any way by the Contractor):"]
[]
[null,null,"B16.1",null,"Wire fences","Nº",{"v":10,"d":"10.0"}]
[]
[null,null,"B17",null,"Excavation across gravel roads"]
[]
[null,null,"B17.1",null,"Selective excavation in all materials for trenches, backfill with stabilised 5% cement, compact and dispose of surplus material for trenches under gravel roads for pipes up to 300mm diameter (only one half of the road is to be opened at any one time)"]
[]
[null,null,"B17.1.1",null,"1,5m - 2.0m","m",{"v":50,"d":"50.0"}]
[]
[]
[]
[]
[]
[]
[null,null," TOTAL CARRIED FORWARD TO SUMMARY",{"$nulls":5},{"$f":"I305+SUM(I306:I377)","v":{"v":0,"d":"R 0.00"}}]
[]
[]
[{"$nulls":4},"SECTION C:  PIPEWORK"]
[]
[{"$nulls":3},"SABS 1200LB","PIPEWORK"]
[]
[null,null,"C.1",null,"Provision of bedding",null,{"v":0,"d":"0.0"}]
[]
[null,null,"C.1.1","8.2.1","Selected from trenches, and/or other excavations without the need for screening or other treatment:",null,{"v":0,"d":"0.0"}]
[]
[null,null,"C.1.1.1",null,"Selected granular material","m³",{"v":1000,"d":"1000.0"}]
[]
[null,null,"C.1.1.2",null,"Selected fill material","m³",{"v":900,"d":"900.0"}]
[]
[null,null,"C.1.2","8.2.1","Selected from trenches and/or other excavation incl. for screening and/or other treatment:",null,{"v":0,"d":"0.0"}]
[]
[null,null,"C.1.2.1",null,"Selected granular material","m³",{"v":650,"d":"650.0"}]
[]
[null,null,"C.1.2.2",null,"Selected fill material","m³",{"v":450,"d":"450.0"}]
[]
[null,null,"C.1.3",null,"Supply of bedding from commercial sources, where ordered:",null,{"v":0,"d":"0.0"}]
[]
[null,null,"C.1.3.1",null,"Selected granular material","m³",{"v":30,"d":"30.0"}]
[]
[null,null,"C.1.3.2",null,"Selected fill material","m³",{"v":30,"d":"30.0"}]
[]
[null,null,"C.1.4",null,"Selected from designated borrow pit, incl. all costs for additional handling and transport:",null,{"v":0,"d":"0.0"}]
[]
[null,null,"C.1.4.1",null,"Selected granular material","m³",{"v":20,"d":"20.0"}]
[]
[null,null,"C.1.4.2",null,"Selected fill material","m³",{"v":20,"d":"20.0"}]
[]
[null,null,"C.1.5","8.2.3","Concrete bedding cradle","m³",{"v":2,"d":"2.0"}]
[]
[null,null,"C.1.6","8.2.4","Concrete encasing of pipes in trenches in 20/19 concrete","m³",{"v":2,"d":"2.0"}]
[]
[null,null,"C.2","SABS 1200L","Pipe Laying",null,{"v":0,"d":"0.0"}]
[]
[{"$nulls":4},"uPVC Pipes",null,{"v":0,"d":"0.0"}]
[]
[{"$nulls":4},"uPVC pipes Class 16 (SABS 966-1) in 6 m lengths",null,{"v":0,"d":"0.0"}]
[]
[null,null,"C.2.1","8.2.1","Supply, handle, lay, test and disinfect uPVC pipes with Z Lok joints in bedding for flexible pipes",null,{"v":0,"d":"0.0"}]
[]
[null,null,"C.2.1.1",null,"75 mm dia, Class 16","m",{"v":2600,"d":"2600.0"}]
[]
[null,null,"C.2.2",null,"E.O. Item C.2.1.1 for cutting, levelling and fixing uPVC pipes",null,{"v":0,"d":"0.0"}]
[]
[null,null,"C.2.2.1",null,"75 mm dia","No",{"v":10,"d":"10.0"}]
[]
[null,null,"C.2.3",null,"uPVC pressure bends with Z Lok one end only",null,{"v":0,"d":"0.0"}]
[]
[null,null,"C.2.3.1",null,"11¼ º x 75 mm dia","No",{"v":8,"d":"8.0"}]
[]
[null,null,"C.2.3.2",null,"22½ º x 75 mm dia","No",{"v":5,"d":"5.0"}]
[]
[null,null,"C.2.3.3",null,"45º x 75 mm dia","No",{"v":3,"d":"3.0"}]
[]
[null,null,"C.2.3.4",null,"90º x 75 mm dia","No",{"v":1,"d":"1.0"}]
[]
[null,null,"C.2.4",null,"Z Lok Cast Iron Fittings and Specials for use with uPVC pipes - Flanges Table 1600",null,{"v":0,"d":"0.0"}]
[]
[{"$nulls":4},"Supply handle, lay, joint test and disinfect cast iron fittings and specials, including nuts, bolts, gaskets and sealing rubbers",null,{"v":0,"d":"0.0"}]
[]
[{"$nulls":4},"Flange Adaptors (Flanges Table 1600/3):",null,{"v":0,"d":"0.0"}]
[]
[null,null,"C.2.4.1",null,"75 mm dia","No",{"v":4,"d":"4.0"}]
[]
[{"$nulls":4},"Standard scour tees, barrel PE, flanged branch:",null,{"v":0,"d":"0.0"}]
[]
[null,null,"C.2.4.2",null,"75 mm x 75 mm","No",{"v":5,"d":"5.0"}]
[]
[]
[]
[]
[]
[]
[null,null," TOTAL CARRIED FORWARD",{"$nulls":5},{"$f":"SUM(I382:I455)","v":{"v":0,"d":"R 0.00"}}]
[]
[]
[null,null," BROUGHT FORWARD",{"$nulls":5},{"$f":"I457","v":{"v":0,"d":"R 0.00"}}]
[]
[]
[{"$nulls":4},"Standard air tees, barrel PE - flanged branch:",null,{"v":0,"d":"0.0"}]
[]
[null,null,"C.2.4.3",null,"110 mm x 75 mm","No",{"v":4,"d":"4.0"}]
[]
[null,null,"C.2.4.4",null,"75 mm x 75 mm","No",{"v":5,"d":"5.0"}]
[]
[null,null,"C.2.4.5",null,"160 mm x 75 mm","No",{"v":2,"d":"2.0"}]
[]
[{"$nulls":4},"uPVC end caps",null,{"v":0,"d":"0.0"}]
[]
[null,null,"C2.4.6",null,"75 mm","No",{"v":1,"d":"1.0"}]
[]
[null,null,"C.3",null,"Steel Pipes and Fittings (Flanges Table 1600/3 unless scheduled otherwise):",null,{"v":0,"d":"0.0"}]
[]
[{"$nulls":4},"Supply, handle, lay, joint, test and disinfect steel fittings and specials. Rates are to include for all bolts, nuts and gaskets and jointing materials:",null,{"v":0,"d":"0.0"}]
[]
[{"$nulls":4},"Note: 3,3 mm thick steel pipes in accordance with SABS 62: Part 1 up to and incl. 150 mm dia, pipes manufactured from 4,5 mm thick Grade B steel plate for 200 mm dia and larger. Pipes up to and incl. 150 mm dia hot dipped galvanised. Pipes 200 m dia and larger, coated and lined with an approved epoxy system with a dry film thickness of at least 350 microns:",null,{"v":0,"d":"0.0"}]
[null,null,"C.3.1",null,"25 mm dia FL/PE pipe 400 mm long, flange to suit 80 mm dia pipe flange, PE threaded","No",{"v":2,"d":"2.0"}]
[]
[null,null,"C.3.2",null,"80mm dia FL/PE pipe 2000 mm long, PE cut to suit on site and threaded \t","No",{"v":3,"d":"3.0"}]
[null,null,"C.3.3",null,"50 mm dia x 6,0 m long PE pipe rate to include for one VJ coupling per pipe length (Table 2500)","No",{"v":70,"d":"70.0"}]
[]
[null,null,"C.3.4",null,"50 mm dia FL/PE pipe 2000 mm long PE cut to suit on site and threaded","No",{"v":20,"d":"20.0"}]
[]
[null,null,"C.3.5",null,"50 mm dia FL/PE pipe 400mm long - PE threaded","No",{"v":17,"d":"17.0"}]
[]
[{"$nulls":4},"VJ Adaptor Joints/Couplings:",null,{"v":0,"d":"0.0"}]
[]
[null,null,"C.3.6",null,"80 mm dia VJ Adaptor joint to suit 88,9 m OD pipe","No",{"v":3,"d":"3.0"}]
[]
[null,null,"C.3.7",null,"50 mm dia VJ Adaptor jointto suit 60,3 mm OD pipe","No",{"v":10,"d":"10.0"}]
[]
[{"$nulls":4},"Screw-on Flanges:",null,{"v":0,"d":"0.0"}]
[]
[null,null,"C.3.8",null,"80 mm dia BSP threaded Boss Flange","No",{"v":3,"d":"3.0"}]
[]
[null,null,"C.3.9",null,"50 mm dia BSP threaded Boss Flange","No",{"v":20,"d":"20.0"}]
[]
[{"$nulls":4},"Jet Dispersers ",null,{"v":0,"d":"0.0"}]
[]
[null,null,"C.3.11",null,"80 mm dia as per Drawings","No",{"v":3,"d":"3.0"}]
[]
[null,null,"C.3.12",null,"50 mm dia as per Drawings","No",{"v":20,"d":"20.0"}]
[]
[{"$nulls":4},"Bends:",null,{"v":0,"d":"0.0"}]
[]
[null,null,"C.3.13",null,"80 mm dia x 45°, FL/PE, 230 C/F 3 segments","No",{"v":3,"d":"3.0"}]
[]
[null,null,"C.3.14",null,"50 mm dia x 45º FL/PE bend 180 C/F 3 segments","No",{"v":20,"d":"20.0"}]
[]
[{"$nulls":4},"Tees:",null,{"v":0,"d":"0.0"}]
[]
[null,null,"C.3.15",null,"50 mm x 50 mm all flanged tee, 200 mm C/F \t","No",{"v":37,"d":"37.0"}]
[]
[null,null,"C.3.16",null,"75 mm x 50 mm all flanged tee 200 mm C/F","No",{"v":3,"d":"3.0"}]
[]
[{"$nulls":4},"Reducers",null,{"v":0,"d":"0.0"}]
[]
[null,null,"C.3.17",null,"80 mm dia x 50 mm D/FL reducer 200 mm F/F","No",{"v":3,"d":"3.0"}]
[]
[null,null,"C.3.18",null,"50 mm diameter x 40 D/FL reducer 150 mm F/F","No",{"v":8,"d":"8.0"}]
[]
[]
[]
[]
[]
[]
[null,null," TOTAL CARRIED FORWARD",{"$nulls":5},{"$f":"SUM(I452:I528)","v":{"v":0,"d":"R 0.00"}}]
[]
[]
[null,null," BROUGHT FORWARD",{"$nulls":5},{"$f":"I530","v":{"v":0,"d":"R 0.00"}}]
[]
[]
[null,null,"C.3.19",null,"Pipes and fittings for PRV Chamber",null,{"v":0,"d":"0.0"}]
[]
[null,null,"C.3.19.1",null,"1 set of spares for pressure reducing valve (Item C.3.17.9)","No",{"v":3,"d":"3.0"}]
[]
[null,null,"C.3.19.2",null,"1 set of spares for pressure relief valve (Item C.3.17.11)","No",{"v":3,"d":"3.0"}]
[]
[null,null,"C.3.19.3",null,"40 mm dia x 600 mm long FL/PE steel pipe, flanges table 1600/3, PE end cut to suit on site and to be BSP threaded","No",{"v":12,"d":"12.0"}]
[]
[null,null,"C.3.19.4",null,"40 mm dia ball valve, 1600 kPa (female/female)","No",{"v":3,"d":"3.0"}]
[]
[null,null,"C.3.19.5",null,"40 mm dia BSP threaded nipple, hdg","No",{"v":12,"d":"12.0"}]
[]
[null,null,"C.3.19.6",null,"40 mm dia female connector, BSP threaded, hdg","No",{"v":6,"d":"6.0"}]
[]
[null,null,"C.3.19.7",null,"40 mm dia VJ adaptor joint to suit 48.42 OD pipe, flange table 1600/3","No",{"v":3,"d":"3.0"}]
[]
[null,null,"C.3.19.8",null,"40 mm dia BSP threaded boss flange, hdg, flange table 1600/3","No",{"v":3,"d":"3.0"}]
[]
[null,null,"C.3.19.9",null,"40 (1½) dia (honey well","No",{"v":3,"d":"3.0"}]
[]
[null,null,"C.3.19.10",null,"40 mm dia female tee, BSP threaded , hdg","No",{"v":6,"d":"6.0"}]
[]
[null,null,"C.3.19.11",null,"40 mm dia (VYC, model 095 ES, bronze/brass type, 1½ x 1½\") pressure relief valve as supplied by Valvequip or similar approved. \"","No",{"v":3,"d":"3.0"}]
[]
[null,null,"C.3.19.12",null,"40 mm dia 90º elbow, BSP threaded, hdg (male/female)","No",{"v":6,"d":"6.0"}]
[]
[null,null,"C.3.19.13",null,"40 mm dia x 500 mm long PE Class 16 steel pipe, cut to suit on site and BSP threaded","No",{"v":12,"d":"12.0"}]
[]
[null,null,"C.3.19.14",null,"40 mm diameter x 90º elbow, BSP threaded (Female / Female)","No",{"v":12,"d":"12.0"}]
[null,null,"C.3.20",null,"Pipes and Fittings for Bulk Meter Chamber (Table 1600)",null,{"v":0,"d":"0.0"}]
[]
[null,null,"C.3.20.1",null,"40 mm dia x 600 mm long D/FL pipe","No",{"v":16,"d":"16.0"}]
[]
[null,null,"C.3.20.2",null,"40 mm dia Meinecke Cosmos WPD Strainer","No",{"v":8,"d":"8.0"}]
[]
[null,null,"C.3.20.3",null,"40 mm dia Meinke Cosmos WPD Meter","No",{"v":8,"d":"8.0"}]
[]
[null,null,"C.3.20.4",null,"40 mm dia x 300 mm long FL/PE pipe","No",{"v":8,"d":"8.0"}]
[]
[null,null,"C.3.20.5",null,"40 mm dia VJ adaptor joint to suit 48,4 mm OD pipe","No",{"v":8,"d":"8.0"}]
[]
[null,null,"C.4",null,"Puddle Pipes (Stainless Steel)",null,{"v":0,"d":"0.0"}]
[]
[{"$nulls":4},"Stainless steel pipework grade 304L, wall thickness 3,4 mm. All fittings to be pickled and passivated after welding (flanges to SABS 1123 Table 1600/3) (stainless steel bolts and nuts to be coated with a nickle anti-seize compound):",null,{"v":0,"d":"0.0"}]
[]
[null,null,"C.4.1",null,"50 mm dia D/FL puddle pipe 600 mm long with central puddle collar ","No",{"v":3,"d":"3.0"}]
[]
[null,null,"C.5",null,"Waterworks pattern flanged gate valves: (Table 1600) (SABS approved)",null,{"v":0,"d":"0.0"}]
[]
[{"$nulls":4},"Supply, handle, lay, joint, test and disinfect valves. Rates are to include for all bolts, nuts and gaskets and jointing materials:",null,{"v":0,"d":"0.0"}]
[]
[null,null,"C.5.1",null,"80 mm dia wedge gate valve with square cap","No",{"v":5,"d":"5.0"}]
[]
[null,null,"C.5.2",null,"25 mm dia female/female brass ballstop valve","No",{"v":15,"d":"15.0"}]
[]
[null,null,"C.5.3",null,"50 mm dia RSV Valve with Square cap","No",{"v":20,"d":"20.0"}]
[{"$nulls":6},{"v":0,"d":"0.0"}]
[null,null,"C.6",null,"Air Valves",null,{"v":0,"d":"0.0"}]
[]
[{"$nulls":4},"Supply, handle, lay, joint, test and disinfect valves. Rates are to include for all bolts, nuts and gaskets and jointing materials:",null,{"v":0,"d":"0.0"}]
[]
[null,null,"C.6.1","PA3.2","25 mm dia air valve Vent-o-Matt 025 RB X 2511 or similar approved","No",{"v":10,"d":"10.0"}]
[]
[]
[]
[]
[null,null," TOTAL CARRIED FORWARD",{"$nulls":5},{"$f":"SUM(I520:I600)","v":{"v":0,"d":"R 0.00"}}]
[]
[]
[null,null," BROUGHT FORWARD",{"$nulls":5},{"$f":"I602","v":{"v":0,"d":"R 0.00"}}]
[]
[]
[{"$nulls":3},"SABS 1200 L","HDPE Pipes",null,{"v":0,"d":"0.0"}]
[]
[null,null,"C.7","8.2.1","Supply, handle, lay, test and disinfect Type IV HDPE pipes with compression joints in bedding for flexible pipes: (Rate to include for fitting per roll)",null,{"v":0,"d":"0.0"}]
[]
[null,null,"C.7.1",null,"63 mm dia, Class 12","m",{"v":500,"d":"500.0"}]
[]
[null,null,"C.7.2",null,"63 mm dia, Class 16","m",{"v":2000,"d":"2000.0"}]
[]
[null,null,"C.7.3",null,"50 mm dia, Class 12","m",{"v":300,"d":"300.0"}]
[]
[null,null,"C.7.4",null,"50 mm dia, Class 16","m",{"v":4600,"d":"4600.0"}]
[]
[null,null,"C.7.5",null,"Supply, handle, lay, joint test and disinfect the following Plasson compression fittings",null,{"v":0,"d":"0.0"}]
[]
[null,null,"C.7.5.1",null,"50 mm dia, end plug (Class 16)","No",{"v":10,"d":"10.0"}]
[]
[null,null,"C.7.5.2",null,"63 mm dia end plug (Class 16)","No",{"v":3,"d":"3.0"}]
[]
[null,null,"C.7.5.3",null,"75 mm dia - 3 flanged adaptor with galvinised backing ring","No",{"v":4,"d":"4.0"}]
[]
[null,null,"C.7.5.4",null,"63 mm dia - 2 Flanged adaptor with galvanised backing ring","No",{"v":20,"d":"20.0"}]
[]
[null,null,"C.7.5.5",null,"50 mm dia - 2 Flanged adaptor with galvanised backing ring Flange Table 1600/3\"","No",{"v":30,"d":"30.0"}]
[]
[null,null,"C.7.6",null,"50 mm x 50 mm tee with compression fitting","No",{"v":2,"d":"2.0"}]
[]
[null,null,"C.7.7",null,"63 mm x 50 mm reducing tee with compression fittings","No",{"v":1,"d":"1.0"}]
{"$rows_empty":47}
[null,null," TOTAL CARRIED FORWARD TO SUMMARY",{"$nulls":5},{"$f":"I564+SUM(I565:I680)","v":{"v":0,"d":"R 0.00"}}]
[]
[]
[{"$nulls":4},"SECTION D : SUNDRIES",null,{"v":0,"d":"0.0"}]
[]
[null,null,"D.1",null,"Valve Chambers",null,{"v":0,"d":"0.0"}]
[]
[{"$nulls":4},"Supply materials and construct complete chambers. Pipes and fittings scheduled separately",null,{"v":0,"d":"0.0"}]
[]
[null,null,"D.1.1",null,"Supply and build valve box complete as shown on Drawings",null,{"v":0,"d":"0.0"}]
[]
[null,null,"D.1.1.1",null,"Of overall depth not exceeding 1,25 m","No",{"v":15,"d":"15.0"}]
[]
[null,null,"D.1.1.2",null,"Of overall depth not exceeding 0,6 m","No",{"v":20,"d":"20.0"}]
[]
[null,null,"D.1.1.3",null,"EO Item D.1.1.1 individual precast rings as shown on Drawings","No",{"v":10,"d":"10.0"}]
[]
[null,null,"D.1.2",null,"Supply and construct complete air valve chamber incl. for manhole cover and frame and building in pipework. ",null,{"v":0,"d":"0.0"}]
[]
[null,null,"D.1.2.1",null,"Of overall depth (incl. floor and roof slab) not exceeding 1,25 m","No",{"v":15,"d":"15.0"}]
[]
[null,null,"D.1.2.2",null,"EO Item D.1.2.1 for depth in excess of 1,25 m:",null,{"v":0,"d":"0.0"}]
[]
[null,null,"D.1.2.2.1",null,"0,25 m","No",{"v":2,"d":"2.0"}]
[]
[null,null,"D.1.3",null,"Construct complete PRV chamber all as shown on Drawings (Pipes and fittings measured elsewhere)","No",{"v":3,"d":"3.0"}]
[]
[null,null,"D.1.4",null,"Construct complete meter chamber all as shown on Drawings (Pipes and fittings measured elsewhere)","No",{"v":8,"d":"8.0"}]
[]
[null,null,"D.2",null,"Concrete",null,{"v":0,"d":"0.0"}]
[]
[null,null,"D.2.1",null,"Anchor blocks in Grade 20/19 concrete as per Drawings (incl. rough shuttering)","m³",{"v":8,"d":"8.0"}]
[]
[{"$nulls":4},"Marker Posts",null,{"v":0,"d":"0.0"}]
[]
[null,null,"D.3",null,"Supply and install marker beacons as shown on Drawings at all horizontal bends on pipeline and where ordered by the Engineer, incl. for painting twice with yellow road marking paint and concrete surround","No",{"v":100,"d":"100.0"}]
[]
[null,null,"D.4",null,"Supply and install LV, SV and AV marker posts as per Drawings(painted with yellow marking paint) including for concrete surround","No",{"v":50,"d":"50.0"}]
[]
[null,null,"D.5",null,"Supply and apply Denso protection to SCJ's, flanges, VJ couplings and VJ adaptor joints :",null,{"v":0,"d":"0.0"}]
[]
[null,null,"D.5.1",null,"80 mm dia","No",{"v":30,"d":"30.0"}]
[]
[null,null,"D.5.2",null,"50 mm dia","No",{"v":180,"d":"180.0"}]
[]
[null,null,"D.6",null,"Supply and install 50 mm Discus 0370 padlock as supplied by Southern Bolt - only one security key needed","No",{"v":70,"d":"70.0"}]
[]
[null,null,"D.7",null,"Standpipes (Provisional)",null,{"v":0,"d":"0.0"}]
[]
[{"$nulls":4},"Supply, install, disinfect and commission the following fittings for standpipes, all as shown on Drawings",null,{"v":0,"d":"0.0"}]
[]
[null,null,"D.7.1",null,"15 mm male/female ballstop valve 1200 kPa","No",{"v":25,"d":"25.0"}]
[]
[null,null,"D.7.2",null,"15 mm male/female copper coupling","No",{"v":50,"d":"50.0"}]
[]
[null,null,"D.7.3",null,"15 mm female/female ballstop valve 1200 kPa","No",{"v":25,"d":"25.0"}]
[]
[null,null,"D.7.4",null,"15 mm threaded male strainer","No",{"v":25,"d":"25.0"}]
[]
[null,null,"D.7.5",null,"15 mm galvanised iron socket","No",{"v":25,"d":"25.0"}]
[]
[null,null,"D.7.6",null,"15 mm threaded pressure reducing valve with adjustable downstream pressure setting 400 - 1200 kPa","No",{"v":12,"d":"12.0"}]
[]
[null,null,"D.7.7",null,"15 mm x ½ copper to female iron coupler\"","No",{"v":25,"d":"25.0"}]
[]
[null,null,"D.7.8",null,"15 mm Brass male bib tap","No",{"v":25,"d":"25.0"}]
[]
[null,null,"D8",null,"Supply and install standpipes, and other materials, plant and labour, as shown on Drawings","No",{"v":25,"d":"25.0"}]
[]
[]
[]
[null,null," TOTAL CARRIED FORWARD",{"$nulls":5},{"$f":"SUM(I667:I751)","v":{"v":0,"d":"R 0.00"}}]
[]
[]
[null,null," BROUGHT FORWARD",{"$nulls":5},{"$f":"I753","v":{"v":0,"d":"R 0.00"}}]
[]
[]
[null,null,"D9",null,"Excavate for 15 mm dia polycop pipe 300 mm deep","m³",{"v":25,"d":"25.0"}]
[]
[null,null,"D10",null,"Supply and lay 15 mm dia polycop pipe","m",{"v":150,"d":"150.0"}]
[]
[null,null,"D11",null,"Supply, install and test approved Class 16 cast iron saddles complete drilled and tapped with ½ BSP threaded socket including all bolts"]
[]
[null,null,"D.11.1",null,"75 mm dia","No",{"v":10,"d":"10.0"}]
[]
[null,null,"D.11.2",null,"63 mm dia","No",{"v":15,"d":"15.0"}]
[]
[null,null,"D.11.3",null,"50 mm dia","No",{"v":4,"d":"4.0"}]
[]
[null,null,"D12",null,"Connect into Existing Main",null,{"v":0,"d":"0.0"}]
[]
[null,null,"D.12.1",null,"Cut and connect to existing water mains complete as directed on site by the engineer","No",{"v":2,"d":"2.0"}]
{"$rows_empty":60}
[null,null," TOTAL CARRIED FORWARD TO SUMMARY",{"$nulls":5},{"$f":"I697+SUM(I698:I832)","v":{"v":0,"d":"R 0.00"}}]

{"sheet":"Summary Page","index":1,"n_rows":50,"n_cols":3,"rows_kept":50,"merged":[[41,0,42,1],[41,2,42,2],[43,0,44,1],[43,2,44,2],[45,0,46,1],[45,2,46,2],[47,0,48,1],[47,2,48,2],[49,0,51,1],[49,2,51,2]]}
["MHLATHUZE WATER"]
["MTUBATUBA LOCAL MUNICIPALITY: WARD 10 WATER SUPPLY REFURBISHMENT"]
["CONTRACT NUMBER: MW/73/3/2022/2023"]
["BILL OF QUANTITIES"]
[]
["Section","Description","Total"]
[]
[null,"FINAL SUMMARY"]
[]
["A","Priliminaries and General"]
[]
["B","Earthworks"]
[]
["C","Pipework"]
[]
["D","Sundries"]
{"$rows_empty":25}
["Sub-Total :"]
[]
["Add 10% Contingencies "]
[]
["Sub-Total"]
[]
["Add 15% VAT"]
[]
["TOTAL :"]